[Event "GER-ch Youth-U10 2022"]
[Site "Willingen"]
[Date "2022.06.10"]
[Round "9.2"]
[White "Li, Yunqi"]
[Black "Zhang, Yibo"]
[Result "0-1"]
[ECO "C54"]
[WhiteElo "1312"]
[BlackElo "1436"]
[Annotator "NA RC COMBH"]
[PlyCount "76"]
[EventDate "2022.06.05"]
[EventType "swiss"]
[EventRounds "11"]
[EventCountry "GER"]
[SourceTitle "playchess.com"]
[Source "ChessBase"]
[SourceQuality "1"]
[TimeControl "40/4500+30:900+30"]

1. e4 {[%emt 0:00:01]} e5 {[%emt 0:00:08]} 2. Nf3 {[%emt 0:00:06]} Nc6 {[%emt 0:00:04]} 3. Bc4 {[%emt 0:00:10]} Bc5 {[%emt 0:00:05]} 4. c3 {[%emt 0:00:06]} Nf6 {[%emt 0:00:05]} 5. d3 {[%emt 0:00:07]} a6 {[%emt 0:00:09]} 6. Bb3 {[%emt 0:01:02]} Ba7 {[%emt 0:00:24]} 7. Nbd2 {[%emt 0:00:12]} O-O {[%emt 0:00:21]} 8. Nf1 {[%emt 0:00:35]} d5 {[%emt 0:00:44]} 9. Qe2 {[%emt 0:00:28]} h6 {[%emt 0:01:10]} 10. h3 {[%emt 0:00:12]} Re8 {[%emt 0:00:47]} 11. Ng3 {[%emt 0:00:55]} Be6 {[%emt 0:01:08]} 12. Bc2 {[%emt 0:00:49]} b5 {[%emt 0:01:03]} 13. O-O {[%emt 0:01:30]} dxe4 {[%emt 0:00:31]} 14. dxe4 {[%emt 0:01:14]} Bc4 {[%emt 0:00:15]} 15. Qe1 {[%emt 0:00:46]} Bxf1 {[%emt 0:00:13]} 16. Kxf1 {[%emt 0:00:21]} Qe7 {[%emt 0:02:59]} 17. Nf5 {[%emt 0:02:15]} Qf8 {[%emt 0:00:06]} 18. Bd2 {[%emt 0:17:18]} Rad8 {[%emt 0:01:50]} 19. b4 {[%emt 0:06:10]} Ne7 {[%emt 0:02:39]} 20. N3h4 {[%emt 0:00:53]} Nxf5 {[%emt 0:00:40]} 21. Nxf5 {[%emt 0:01:11]} Rd7 {[%emt 0:03:36]} 22. f3 {[%emt 0:01:19]} c5 {[%emt 0:02:44]} 23. a3 {[%emt 0:01:38]} Red8 {[%emt 0:01:42]} 24. Bc1 {[%emt 0:00:19]} Kh7 {[%emt 0:03:46]} 25. Qg3 {[%emt 0:03:42]} Re8 {[%emt 0:09:16]} 26. Qh4 {[%emt 0:02:23]} Re6 {[%emt 0:01:19]} 27. g4 {[%emt 0:01:23]} Ng8 {[%emt 0:02:02]} 28. Ke2 {[%emt 0:05:28]} cxb4 {[%emt 0:01:22]} 29. axb4 {[%emt 0:01:58]} Qc8 {[%emt 0:01:31]} 30. Bd2 {[%emt 0:01:57]} Qd8 {[%emt 0:02:53]} 31. Qxd8 {[%emt 0:00:40]} Rxd8 {[%emt 0:01:18]} 32. Bb3 {[%emt 0:00:33]} Rc6 {[%emt 0:07:29]} 33. Bxf7 {[%emt 0:02:22]} Rf6 {[%emt 0:00:15]} 34. Bd5 {[%emt 0:01:14]} Re8 {[%emt 0:06:40]} 35. h4 {[%emt 0:02:17]} Ne7 {[%emt 0:00:38]} 36. Nxe7 {[%emt 0:00:30]} Rxe7 {[%emt 0:00:34]} 37. g5 {[%emt 0:00:38]} Rd6 {[%emt 0:01:36]} 38. Rg1 {[%emt 0:05:56]} Bxg1 {[%emt 0:00:52]} 0-1

[Event "GER-ch Youth-U10 2022"]
[Site "Willingen"]
[Date "2022.06.10"]
[Round "9.3"]
[White "Dotschuweit, Erik"]
[Black "Rodriguez Klasen, Ennio"]
[Result "0-1"]
[ECO "B03"]
[WhiteElo "1323"]
[BlackElo "1315"]
[Annotator "NA RC COMBH"]
[PlyCount "34"]
[EventDate "2022.06.05"]
[EventType "swiss"]
[EventRounds "11"]
[EventCountry "GER"]
[SourceTitle "playchess.com"]
[Source "ChessBase"]
[SourceQuality "1"]
[TimeControl "40/4500+30:900+30"]

1. e4 {[%emt 0:00:03]} Nf6 {[%emt 0:00:06]} 2. e5 {[%emt 0:00:06]} Nd5 {[%emt 0:00:04]} 3. c4 {[%emt 0:00:09]} Nb6 {[%emt 0:00:11]} 4. d4 {[%emt 0:00:09]} d6 {[%emt 0:00:09]} 5. exd6 {[%emt 0:00:06]} cxd6 {[%emt 0:00:20]} 6. Nc3 {[%emt 0:00:14]} g6 {[%emt 0:00:36]} 7. Be3 {[%emt 0:00:44]} Bg7 {[%emt 0:01:15]} 8. Rc1 {[%emt 0:00:29]} O-O {[%emt 0:00:22]} 9. b3 {[%emt 0:00:37]} f5 {[%emt 0:17:13]} 10. Bg5 {[%emt 0:03:26]} h6 {[%emt 0:01:53]} 11. Bd2 {[%emt 0:08:57]} e5 {[%emt 0:18:24]} 12. d5 {[%emt 0:01:41]} g5 {[%emt 0:01:34]} 13. Qh5 {[%emt 0:02:49]} Bd7 {[%emt 0:05:26]} 14. Nf3 {[%emt 0:00:49]} Qf6 {[%emt 0:07:20]} 15. h4 {[%emt 0:02:16]} g4 {[%emt 0:01:26]} 16. Bg5 {[%emt 0:06:34]} Qf7 {[%emt 0:01:16]} 17. Qxf7+ {[%emt 0:02:26]} Rxf7 {[%emt 0:00:34]} 0-1

[Event "GER-ch Youth-U10 2022"]
[Site "Willingen"]
[Date "2022.06.10"]
[Round "9.4"]
[White "Fischer, Quirin"]
[Black "Campora, Daniel H."]
[Result "0-1"]
[ECO "B21"]
[WhiteElo "1195"]
[BlackElo "2397"]
[Annotator "TA"]
[PlyCount "110"]
[EventDate "2022.06.05"]
[EventType "swiss"]
[EventRounds "11"]
[EventCountry "GER"]
[SourceTitle "playchess.com"]
[Source "ChessBase"]
[SourceQuality "1"]
[TimeControl "40/4500+30:900+30"]

{[%evp 9,109,46,56,33,56,29,56,42,42,42,60,38,42,36,45,-16,37,0,0,0,0,-25,0,-11,0,1,17,-86,-86,-152,-152,-181,-137,-128,-140,-164,-129,-137,-133,-227,-224,-237,-229,-514,-514,-509,-494,-483,-475,-609,-398,-992,-959,-2316,-2097,-2357,-2255,-2362,-2190,-2411,-2183,-2410,-2395,-2311,-2100,-29976,-29977,-29973,-29976,-29982,-29982,-29982,-29983,-29989,-29990,-29991,-29992,-29992,-29992,-29993,-29993,-29994,-29995,-29995,-29993,-29994,-29993,-29999,-29995,-29995,-29996,-29999,-29996,-29996,-29997,-29997,-29997,-29997,-29998,-29998,-29999,-29999]} 1. e4 {[%emt 0:00:01]} c5 {[%emt 0:00:06]} 2. d4 {[%emt 0:00:04]} cxd4 {[%emt 0:00:11]} 3. c3 {[%emt 0:00:05]} d3 {[%emt 0:00:18]} 4. Bxd3 {[%emt 0:00:06]} Nc6 {[%emt 0:00:29]} 5. Nf3 {[%emt 0:00:07]} d6 {[%emt 0:00:30]} 6. Bf4 {[%emt 0:00:29] B21: Sicilian: 2 f4 and Morra Gambit.} Bg4 {[%emt 0:00:38]} 7. Nbd2 {[%emt 0:00:13]} Nf6 {[%emt 0:00:43]} 8. O-O {[%emt 0:00:16] White is slightly better.} (8. Nc4 {looks sharper.} e6 9. Bc2 d5 10. exd5 Qxd5 11. Qe2) 8... g6 {[%emt 0:00:55]} 9. h3 {[%emt 0:00:13] [#]} Bxf3 $146 {[%emt 0:01:08]} ({Predecessor:} 9... Be6 10. e5 dxe5 11. Bb5 exf4 12. Nd4 Bd7 13. Bxc6 Bxc6 14. Nc4 Bg7 15. Qe2 O-O {0-1 (44) Pham,J-Radtke,L Chelmza 2009}) 10. Nxf3 {[%emt 0:00:07]} Bg7 {[%emt 0:00:56]} 11. Qd2 {[%emt 0:00:37]} O-O {[%emt 0:00:46]} 12. Bh6 {[%emt 0:00:24]} ({White should try} 12. Rad1 $14) 12... Qc7 {[%emt 0:01:49]} (12... Bxh6 $11 13. Qxh6 Qb6) 13. Bxg7 {[%emt 0:00:32]} Kxg7 {[%emt 0:00:21]} 14. Rfe1 {[%emt 0:00:31]} Rad8 {[%emt 0:02:07]} 15. c4 {[%emt 0:01:43]} Rd7 {[%emt 0:02:31]} 16. Rad1 {[%emt 0:01:21]} Rfd8 {[%emt 0:10:21]} 17. Qc3 {[%emt 0:01:12]} Ne5 {[%emt 0:05:09]} 18. Nxe5 {[%emt 0:01:11]} (18. Nd4 $11 {keeps the balance.}) 18... dxe5 $17 {[%emt 0:00:16]} 19. Bc2 {[%emt 0:01:54]} ({White should play} 19. Re3) 19... Rxd1 {[%emt 0:00:27]} 20. Rxd1 {[%emt 0:00:05]} Rxd1+ {[%emt 0:00:09]} 21. Bxd1 {[%emt 0:00:03]} Nxe4 {[%emt 0:00:14][%mdl 4096] Endgame KQB-KQN} 22. Qd3 {[%emt 0:00:49]} Nf6 {[%emt 0:01:28]} 23. b4 {[%emt 0:02:59]} Qd6 {[%emt 0:00:30]} 24. Qb1 {[%emt 0:00:05]} (24. Qxd6 $17 {was necessary.} exd6 25. Kf1) 24... Qd4 $19 {[%emt 0:03:42] Threatens to win with ...Ne4.} 25. Qc2 {[%emt 0:00:55]} Ne4 {[%emt 0:06:48][%cal Oe4f2] ...Nxf2! is the strong threat.} 26. a3 $2 {[%emt 0:01:02] [#]} (26. Bf3 Nd2 27. Qd1) 26... Nxf2 $1 {[%emt 0:03:05][%mdl 512]} 27. Qxf2 {[%emt 0:00:02]} Qxd1+ {[%emt 0:00:09] KQ-KQ} 28. Kh2 {[%emt 0:00:04]} Qd4 {[%emt 0:01:21]} 29. Qf3 {[%emt 0:00:14]} Qf4+ {[%emt 0:00:52]} 30. Qxf4 $2 {[%emt 0:00:16] [#]} (30. Kg1 Qd4+ 31. Qf2) 30... exf4 {[%emt 0:00:05] KP-KP} 31. g3 {[%emt 0:00:07]} f3 {[%emt 0:00:32]} 32. Kg1 {[%emt 0:00:04]} e5 {[%emt 0:00:03][%cal Be7e5,Be5e4][%mdl 32]} 33. Kf2 {[%emt 0:00:06]} e4 {[%emt 0:00:05]} 34. c5 {[%emt 0:00:04]} Kf8 {[%emt 0:00:03]} 35. b5 {[%emt 0:00:07]} Ke7 {[%emt 0:00:05]} 36. a4 {[%emt 0:00:05]} Kd7 {[%emt 0:00:11]} 37. a5 {[%emt 0:00:08]} a6 {[%emt 0:00:35] Black mates.} 38. c6+ {[%emt 0:00:17]} bxc6 {[%emt 0:00:08][%cal Bb7c6,Bc6c5,Bc5c4][%mdl 32]} 39. b6 {[%emt 0:00:05]} c5 {[%emt 0:00:05]} 40. Ke3 {[%emt 0:00:06]} c4 {[%emt 0:00:05]} 41. Kxe4 {[%emt 0:15:06]} f2 {[%emt 0:15:05]} 42. Kd4 {[%emt 0:00:06]} f1=Q {[%emt 0:00:09]} 43. b7 {[%emt 0:00:04]} Kc7 {[%emt 0:00:05]} 44. Ke5 {[%emt 0:00:04]} Kxb7 {[%emt 0:00:05]} 45. g4 {[%emt 0:00:05]} Kc7 {[%emt 0:00:15]} 46. g5 {[%emt 0:00:05]} Qf5+ {[%emt 0:00:11]} 47. Kd4 {[%emt 0:00:03]} Kd6 {[%emt 0:00:10][%csl Gc4][%cal Rf5d3]} 48. h4 {[%emt 0:00:09]} Qf4+ {[%emt 0:00:08]} 49. Kc3 {[%emt 0:00:08]} Kc5 {[%emt 0:00:08][%cal Rf4c1]} 50. h5 {[%emt 0:00:07]} Qf3+ {[%emt 0:00:06]} 51. Kc2 {[%emt 0:00:06]} Kb4 {[%emt 0:00:06]} 52. hxg6 {[%emt 0:00:09]} Qd3+ {[%emt 0:00:16]} 53. Kb2 {[%emt 0:00:05]} Qd2+ {[%emt 0:00:08]} 54. Ka1 {[%emt 0:00:05]} Kb3 {[%emt 0:00:03][%csl Gb3][%cal Rd2b2]} 55. gxh7 {[%emt 0:00:17]} Qc1# {[%emt 0:00:04] Weighted Error Value: White=0.99/Black=0.17 (very precise)} 0-1

[Event "GER-ch Youth-U10 2022"]
[Site "Willingen"]
[Date "2022.06.10"]
[Round "9.6"]
[White "Belin, Anton"]
[Black "Gersemann, Karl"]
[Result "0-1"]
[ECO "A15"]
[WhiteElo "1213"]
[BlackElo "1620"]
[Annotator "NA RC COMBH"]
[PlyCount "100"]
[EventDate "2022.06.05"]
[EventType "swiss"]
[EventRounds "11"]
[EventCountry "GER"]
[SourceTitle "playchess.com"]
[Source "ChessBase"]
[SourceQuality "1"]
[TimeControl "40/4500+30:900+30"]

1. c4 {[%emt 0:00:01]} Nf6 {[%emt 0:00:11]} 2. g3 {[%emt 0:00:07]} e6 {[%emt 0:00:11]} 3. Bg2 {[%emt 0:00:07]} d5 {[%emt 0:00:25]} 4. e3 {[%emt 0:00:18]} dxc4 {[%emt 0:00:30]} 5. Qa4+ {[%emt 0:00:15]} c6 {[%emt 0:00:10]} 6. Qxc4 {[%emt 0:00:14]} Be7 {[%emt 0:00:15]} 7. Nc3 {[%emt 0:00:28]} Nbd7 {[%emt 0:00:07]} 8. Nge2 {[%emt 0:00:24]} O-O {[%emt 0:00:39]} 9. O-O {[%emt 0:00:09]} Nb6 {[%emt 0:00:40]} 10. Qb3 {[%emt 0:00:52]} Nbd5 {[%emt 0:00:08]} 11. d4 {[%emt 0:00:38]} Qc7 {[%emt 0:01:47]} 12. e4 {[%emt 0:00:40]} Nxc3 {[%emt 0:00:31]} 13. Nxc3 {[%emt 0:00:14]} e5 {[%emt 0:00:55]} 14. dxe5 {[%emt 0:00:43]} Qxe5 {[%emt 0:00:09]} 15. Bf4 {[%emt 0:00:24]} Qh5 {[%emt 0:00:54]} 16. f3 {[%emt 0:03:26]} Bc5+ {[%emt 0:01:21]} 17. Kh1 {[%emt 0:00:19]} Bb6 {[%emt 0:01:02]} 18. g4 {[%emt 0:00:50]} Qg6 {[%emt 0:03:27]} 19. e5 {[%emt 0:05:47]} Be6 {[%emt 0:00:35]} 20. Qa4 {[%emt 0:00:27]} Nd5 {[%emt 0:00:26]} 21. Nxd5 {[%emt 0:00:25]} cxd5 {[%emt 0:01:41]} 22. Rad1 {[%emt 0:00:34]} Rac8 {[%emt 0:02:02]} 23. Rd2 {[%emt 0:02:00]} Rc4 {[%emt 0:00:13]} 24. Qd1 {[%emt 0:02:26]} Rxf4 {[%emt 0:00:18]} 25. Re1 {[%emt 0:00:11]} Ba5 {[%emt 0:00:11]} 26. Bf1 {[%emt 0:00:49]} Bxd2 {[%emt 0:00:23]} 27. Qxd2 {[%emt 0:00:08]} Rxf3 {[%emt 0:00:17]} 28. h3 {[%emt 0:00:39]} Qh6 {[%emt 0:01:34]} 29. Qg2 {[%emt 0:04:08]} Re3 {[%emt 0:01:17]} 30. Rxe3 {[%emt 0:02:47]} Qxe3 {[%emt 0:00:07]} 31. Qh2 {[%emt 0:00:10]} d4 {[%emt 0:00:20]} 32. Qe2 {[%emt 0:00:37]} Qxe2 {[%emt 0:00:12]} 33. Bxe2 {[%emt 0:00:06]} Bxa2 {[%emt 0:00:09]} 34. Kg2 {[%emt 0:00:06]} Bb1 {[%emt 0:00:08]} 35. Kf3 {[%emt 0:00:10]} d3 {[%emt 0:00:09]} 36. Bd1 {[%emt 0:00:04]} Bc2 {[%emt 0:00:06]} 37. Be2 {[%emt 0:00:11]} dxe2 {[%emt 0:00:15]} 38. Kxe2 {[%emt 0:00:06]} Re8 {[%emt 0:00:07]} 39. Kd2 {[%emt 0:00:05]} Bg6 {[%emt 0:00:16]} 40. Kc3 {[%emt 0:00:07]} Rxe5 {[%emt 0:00:06]} 41. Kd4 {[%emt 0:15:05]} Rb5 {[%emt 0:15:11]} 42. Kc3 {[%emt 0:00:05]} f5 {[%emt 0:00:14]} 43. g5 {[%emt 0:00:05]} f4 {[%emt 0:00:07]} 44. h4 {[%emt 0:00:12]} f3 {[%emt 0:00:06]} 45. Kd2 {[%emt 0:00:04]} f2 {[%emt 0:00:14]} 46. Ke2 {[%emt 0:00:04]} Rf5 {[%emt 0:00:15]} 47. Kf1 {[%emt 0:00:06]} Rf3 {[%emt 0:00:18]} 48. b4 {[%emt 0:00:08]} Bd3+ {[%emt 0:00:08]} 49. Kg2 {[%emt 0:00:10]} f1=Q+ {[%emt 0:00:05]} 50. Kh2 {[%emt 0:00:06]} Rh3# {[%emt 0:00:24]} 0-1

[Event "GER-ch Youth-U10 2022"]
[Site "Willingen"]
[Date "2022.06.10"]
[Round "9.7"]
[White "Fadeev, Justin Michael"]
[Black "Rau, Eduard"]
[Result "1/2-1/2"]
[ECO "C56"]
[WhiteElo "1320"]
[BlackElo "1406"]
[Annotator "NA RC COMBH"]
[PlyCount "105"]
[EventDate "2022.06.05"]
[EventType "swiss"]
[EventRounds "11"]
[EventCountry "GER"]
[SourceTitle "playchess.com"]
[Source "ChessBase"]
[SourceQuality "1"]
[TimeControl "40/4500+30:900+30"]

1. e4 {[%emt 0:00:01]} e5 {[%emt 0:00:00]} 2. Nf3 {[%emt 0:00:09]} Nc6 {[%emt 0:00:03]} 3. d4 {[%emt 0:00:06]} exd4 {[%emt 0:00:03]} 4. Bc4 {[%emt 0:00:05]} Nf6 {[%emt 0:00:03]} 5. e5 {[%emt 0:00:14]} d5 {[%emt 0:00:03]} 6. Bb5 {[%emt 0:00:11]} Ne4 {[%emt 0:00:04]} 7. Nxd4 {[%emt 0:00:08]} Bd7 {[%emt 0:00:02]} 8. Bxc6 {[%emt 0:00:55]} bxc6 {[%emt 0:00:08]} 9. O-O {[%emt 0:00:11]} Bc5 {[%emt 0:00:03]} 10. f3 {[%emt 0:00:11]} Ng5 {[%emt 0:00:01]} 11. f4 {[%emt 0:01:08]} Ne4 {[%emt 0:00:01]} 12. Be3 {[%emt 0:00:22]} Bb6 {[%emt 0:00:03]} 13. Nc3 {[%emt 0:00:10]} Nxc3 {[%emt 0:00:19]} 14. bxc3 {[%emt 0:00:10]} c5 {[%emt 0:00:15]} 15. Nb3 {[%emt 0:01:10]} c4 {[%emt 0:00:16]} 16. Nd4 {[%emt 0:00:24]} O-O {[%emt 0:00:11]} 17. a4 {[%emt 0:02:37]} a5 {[%emt 0:00:49]} 18. Qd2 {[%emt 0:01:57]} Qe8 {[%emt 0:00:47]} 19. Qf2 {[%emt 0:06:12]} Bxa4 {[%emt 0:03:05]} 20. f5 {[%emt 0:01:08]} Bd7 {[%emt 0:01:26]} 21. Qg3 {[%emt 0:00:48]} c5 {[%emt 0:00:57]} 22. Bh6 {[%emt 0:01:28]} g6 {[%emt 0:00:36]} 23. Ne2 {[%emt 0:05:10]} Bc7 {[%emt 0:01:31]} 24. Bxf8 {[%emt 0:00:30]} Bxe5 {[%emt 0:01:06]} 25. Qe3 {[%emt 0:00:39]} Bxh2+ {[%emt 0:00:06]} 26. Kf2 {[%emt 0:00:47]} Qxe3+ {[%emt 0:01:10]} 27. Kxe3 {[%emt 0:00:13]} Kxf8 {[%emt 0:00:13]} 28. g3 {[%emt 0:03:08]} a4 {[%emt 0:01:05]} 29. fxg6 {[%emt 0:02:56]} hxg6 {[%emt 0:00:23]} 30. Rh1 {[%emt 0:00:10]} Re8+ {[%emt 0:01:22]} 31. Kd2 {[%emt 0:01:40]} Bxg3 {[%emt 0:03:12]} 32. Rh8+ {[%emt 0:07:55]} Ke7 {[%emt 0:00:17]} 33. Rxe8+ {[%emt 0:00:08]} Bxe8 {[%emt 0:00:11]} 34. Nxg3 {[%emt 0:00:08]} f5 {[%emt 0:00:19]} 35. Ke3 {[%emt 0:00:28]} Kf6 {[%emt 0:00:06]} 36. Ne2 {[%emt 0:03:30]} Ke5 {[%emt 0:01:11]} 37. Re1 {[%emt 0:01:07]} Bc6 {[%emt 0:02:07]} 38. Rg1 {[%emt 0:08:01]} d4+ {[%emt 0:02:22]} 39. cxd4+ {[%emt 0:01:42]} cxd4+ {[%emt 0:00:09]} 40. Kf2 {[%emt 0:14:23]} Be4 {[%emt 0:00:39]} 41. Rd1 {[%emt 0:20:31]} Bxc2 {[%emt 0:15:44]} 42. Rxd4 {[%emt 0:02:36]} Bb3 {[%emt 0:00:39]} 43. Rd8 {[%emt 0:03:34]} g5 {[%emt 0:00:29]} 44. Re8+ {[%emt 0:00:51]} Kd6 {[%emt 0:00:28]} 45. Ra8 {[%emt 0:01:47]} Kc5 {[%emt 0:01:21]} 46. Ra5+ {[%emt 0:01:13]} Kb4 {[%emt 0:00:05]} 47. Rxf5 {[%emt 0:00:10]} a3 {[%emt 0:01:48]} 48. Rxg5 {[%emt 0:01:27]} a2 {[%emt 0:00:05]} 49. Rg1 {[%emt 0:00:10]} Ka3 {[%emt 0:00:09]} 50. Nc3 {[%emt 0:01:08]} Kb2 {[%emt 0:00:43]} 51. Nxa2 {[%emt 0:00:20]} Bxa2 {[%emt 0:00:14]} 52. Ke2 {[%emt 0:00:45]} Bb1 {[%emt 0:00:24]} 53. Rg7 {[%emt 0:01:41]} 1/2-1/2

[Event "GER-ch Youth-U10 2022"]
[Site "Willingen"]
[Date "2022.06.10"]
[Round "9.8"]
[White "Allen, Phillipp"]
[Black "Bundan, Edward"]
[Result "0-1"]
[ECO "C01"]
[WhiteElo "1467"]
[BlackElo "1240"]
[Annotator "NA RC COMBH"]
[PlyCount "158"]
[EventDate "2022.06.05"]
[EventType "swiss"]
[EventRounds "11"]
[EventCountry "GER"]
[SourceTitle "playchess.com"]
[Source "ChessBase"]
[SourceQuality "1"]
[TimeControl "40/4500+30:900+30"]

1. e4 {[%emt 0:00:02]} e6 {[%emt 0:00:18]} 2. d4 {[%emt 0:00:08]} d5 {[%emt 0:00:05]} 3. exd5 {[%emt 0:00:12]} exd5 {[%emt 0:00:07]} 4. c3 {[%emt 0:00:31]} Bd6 {[%emt 0:01:03]} 5. Bd3 {[%emt 0:00:31]} Nf6 {[%emt 0:00:15]} 6. Bg5 {[%emt 0:00:17]} c6 {[%emt 0:00:27]} 7. Qc2 {[%emt 0:01:22]} Nbd7 {[%emt 0:01:43]} 8. Nf3 {[%emt 0:03:54]} O-O {[%emt 0:00:56]} 9. O-O {[%emt 0:02:28]} h6 {[%emt 0:01:10]} 10. Bh4 {[%emt 0:01:04]} Qc7 {[%emt 0:01:29]} 11. Nbd2 {[%emt 0:02:54]} b6 {[%emt 0:01:53]} 12. Rfe1 {[%emt 0:05:25]} Bb7 {[%emt 0:01:39]} 13. Bg3 {[%emt 0:00:57]} Bxg3 {[%emt 0:02:14]} 14. hxg3 {[%emt 0:00:39]} Rfe8 {[%emt 0:02:05]} 15. Nf1 {[%emt 0:06:55]} c5 {[%emt 0:04:05]} 16. Ne3 {[%emt 0:01:27]} c4 {[%emt 0:05:39]} 17. Bf5 {[%emt 0:01:09]} Nf8 {[%emt 0:13:14]} 18. Qd2 {[%emt 0:01:14]} Ne4 {[%emt 0:09:34]} 19. Bxe4 {[%emt 0:02:11]} Rxe4 {[%emt 0:01:22]} 20. Ne5 {[%emt 0:03:34]} f6 {[%emt 0:02:57]} 21. Nf3 {[%emt 0:02:29]} Rae8 {[%emt 0:04:32]} 22. Nc2 {[%emt 0:02:26]} Ng6 {[%emt 0:04:10]} 23. Rxe4 {[%emt 0:01:18]} Rxe4 {[%emt 0:00:46]} 24. Re1 {[%emt 0:00:49]} Qe7 {[%emt 0:04:15]} 25. Rxe4 {[%emt 0:01:47]} Qxe4 {[%emt 0:03:00]} 26. Kf1 {[%emt 0:01:06]} Bc8 {[%emt 0:03:41]} 27. Qe2 {[%emt 0:00:51]} Bf5 {[%emt 0:02:22]} 28. Qxe4 {[%emt 0:00:21]} Bxe4 {[%emt 0:00:18]} 29. Ne3 {[%emt 0:02:22]} Ne7 {[%emt 0:00:56]} 30. Ke2 {[%emt 0:03:01]} Kf7 {[%emt 0:00:34]} 31. Nd2 {[%emt 0:00:31]} Bh7 {[%emt 0:00:56]} 32. b3 {[%emt 0:01:45]} b5 {[%emt 0:00:28]} 33. f4 {[%emt 0:04:26]} g5 {[%emt 0:01:26]} 34. Kf3 {[%emt 0:00:40]} h5 {[%emt 0:02:57]} 35. g4 {[%emt 0:05:02]} hxg4+ {[%emt 0:03:03]} 36. Nxg4 {[%emt 0:01:58]} Ke6 {[%emt 0:02:10]} 37. fxg5 {[%emt 0:01:32]} fxg5 {[%emt 0:00:23]} 38. Ne5 {[%emt 0:00:44]} Kf6 {[%emt 0:02:17]} 39. b4 {[%emt 0:01:31]} Bc2 {[%emt 0:00:58]} 40. Ng4+ {[%emt 0:07:35]} Ke6 {[%emt 0:00:53]} 41. Ne3 {[%emt 0:16:03]} Bd3 {[%emt 0:16:54]} 42. g4 {[%emt 0:02:54]} Ng6 {[%emt 0:01:39]} 43. Ng2 {[%emt 0:00:58]} a6 {[%emt 0:00:00]} 44. Ke3 {[%emt 0:00:00]} Ne7 {[%emt 0:00:00]} 45. Nf3 {[%emt 0:00:00]} Kf6 {[%emt 0:00:00]} 46. Ne5 {[%emt 0:00:00]} Be4 {[%emt 0:00:00]} 47. Nd7+ {[%emt 0:00:00]} Kg6 {[%emt 0:00:00]} 48. Ne1 {[%emt 0:00:00]} Nc6 {[%emt 0:00:00]} 49. Nc5 {[%emt 0:00:00]} Bb1 {[%emt 0:00:11]} 50. a3 {[%emt 0:00:00]} Nb8 {[%emt 0:00:25]} 51. a4 {[%emt 0:05:13]} Kf6 {[%emt 0:01:13]} 52. axb5 {[%emt 0:00:00]} axb5 {[%emt 0:00:12]} 53. Nb7 {[%emt 0:00:00]} Na6 {[%emt 0:00:54]} 54. Nf3 {[%emt 0:00:00]} Nc7 {[%emt 0:00:39]} 55. Ne5 {[%emt 0:00:00]} Bc2 {[%emt 0:00:19]} 56. Kf3 {[%emt 0:00:39]} Bd1+ {[%emt 0:00:17]} 57. Kg3 {[%emt 0:00:10]} Ke6 {[%emt 0:00:35]} 58. Nc5+ {[%emt 0:00:35]} Kf6 {[%emt 0:00:22]} 59. Ncd7+ {[%emt 0:00:52]} Ke7 {[%emt 0:00:50]} 60. Nb8 {[%emt 0:00:16]} Kf6 {[%emt 0:00:24]} 61. Nf3 {[%emt 0:01:48]} Bxf3 {[%emt 0:00:20]} 62. Kxf3 {[%emt 0:00:29]} Kg6 {[%emt 0:00:10]} 63. Nc6 {[%emt 0:01:03]} Kf6 {[%emt 0:00:08]} 64. Ke2 {[%emt 0:00:18]} Ke6 {[%emt 0:00:11]} 65. Kd2 {[%emt 0:00:23]} Kf6 {[%emt 0:00:13]} 66. Kc2 {[%emt 0:01:27]} Kg6 {[%emt 0:00:23]} 67. Kb2 {[%emt 0:00:20]} Kf6 {[%emt 0:00:07]} 68. Ka2 {[%emt 0:00:15]} Kg6 {[%emt 0:00:07]} 69. Ka3 {[%emt 0:00:07]} Kf6 {[%emt 0:00:05]} 70. Kb2 {[%emt 0:00:41]} Kg6 {[%emt 0:00:06]} 71. Ka2 {[%emt 0:00:04]} Kf6 {[%emt 0:00:08]} 72. Ka3 {[%emt 0:00:03]} Kg6 {[%emt 0:00:05]} 73. Na7 {[%emt 0:02:07]} Kf6 {[%emt 0:00:35]} 74. Nxb5 {[%emt 0:01:42]} Nxb5+ {[%emt 0:00:24]} 75. Kb2 {[%emt 0:01:50]} Ke6 {[%emt 0:00:16]} 76. Kc2 {[%emt 0:00:19]} Kd6 {[%emt 0:00:12]} 77. Kb2 {[%emt 0:00:27]} Kc6 {[%emt 0:00:06]} 78. Kc2 {[%emt 0:00:05]} Nd6 {[%emt 0:00:07]} 79. Kb2 {[%emt 0:00:53]} Ne4 {[%emt 0:00:11]} 0-1